[Event "37th ECCC 2022"]
[Site "Mayrhofen"]
[Date "2022.10.04"]
[Round "2.77"]
[White "Schiestl, Josef"]
[Black "Tahkavuori, Tapani"]
[Result "*"]
[WhiteElo "2123"]
[BlackElo "2070"]
[Annotator "TA"]
[PlyCount "19"]
[EventDate "2022.10.03"]
[EventType "team-tourn"]
[EventCountry "AUT"]
[SourceTitle "playchess.com"]
[Source "ChessBase"]
[SourceQuality "1"]
[TimeControl "40/5400+30:1800+30"]

{[%evp 11,19,17,12,-20,9,15,12,17,12,11]} 1. e4 {[%emt 0:00:03]} c5 {[%emt 0:00:01]} 2. Nc3 {[%emt 0:00:08]} e6 {[%emt 0:00:31]} 3. Nf3 {[%emt 0:00:27]} Nc6 {[%emt 0:02:00]} 4. d4 {[%emt 0:00:10]} cxd4 {[%emt 0:00:26]} 5. Nxd4 {[%emt 0:00:07]} Nf6 {[%emt 0:01:11]} 6. Be2 {[%emt 0:03:38]} Be7 {[%emt 0:06:25] The position is equal.} 7. f4 {[%emt 0:00:47] [#] B45: Sicilian Four Knights.} d5 $146 {[%emt 0:02:21]} ({Predecessor:} 7... d6 8. Be3 a6 9. O-O Qc7 10. Kh1 Bd7 11. Qe1 Nxd4 12. Bxd4 Bc6 13. Bf3 O-O 14. Qg3 b5 15. a3 a5 16. e5 dxe5 17. Bxe5 Qb7 18. Rae1 g6 19. Qh3 {0-1 (46) Reyes Najera,C (2265)-Flores,M (2185) San Salvador 1994}) 8. e5 {[%emt 0:03:19]} Nxd4 {[%emt 0:02:28]} 9. Qxd4 {[%emt 0:00:19]} Nd7 {[%emt 0:00:11]} 10. Be3 {[%emt 0:07:22] A rather calm draw.  Weighted Error Value: White=0.14 (very precise) /Black=0.08 (flawless)} *

[Event "37th ECCC 2022"]
[Site "Mayrhofen"]
[Date "2022.10.04"]
[Round "2.77"]
[White "Maciol, Ryszard"]
[Black "Torkkola, Henri"]
[Result "1-0"]
[ECO "B45"]
[WhiteElo "2119"]
[BlackElo "2174"]
[Annotator "TA"]
[PlyCount "63"]
[EventDate "2022.10.03"]
[EventType "team-tourn"]
[EventCountry "AUT"]
[SourceTitle "playchess.com"]
[Source "ChessBase"]
[SourceQuality "1"]
[TimeControl "40/5400+30:1800+30"]

{[%evp 11,63,16,30,-23,19,16,19,22,18,12,14,0,0,-35,-36,-45,27,36,60,81,161,70,72,39,33,24,46,19,47,43,122,60,60,48,61,46,332,165,156,154,705,672,1149,1038,29980,29981,29992,29993,29993,29994,29994,29995,29999,29997]} 1. e4 {[%emt 0:00:03]} c5 {[%emt 0:00:01]} 2. Nc3 {[%emt 0:00:08]} e6 {[%emt 0:00:31]} 3. Nf3 {[%emt 0:00:27]} Nc6 {[%emt 0:02:00]} 4. d4 {[%emt 0:00:10]} cxd4 {[%emt 0:00:26]} 5. Nxd4 {[%emt 0:00:07]} Nf6 {[%emt 0:01:11]} 6. Be2 {[%emt 0:03:38]} Be7 {[%emt 0:06:25]} 7. f4 {[%emt 0:00:47] [#] B45: Sicilian Four Knights.} (7. O-O $142) 7... d5 $146 {[%emt 0:02:21]} ({Predecessor:} 7... d6 8. Be3 a6 9. O-O Qc7 10. Kh1 Bd7 11. Qe1 Nxd4 12. Bxd4 Bc6 13. Bf3 O-O 14. Qg3 b5 15. a3 a5 16. e5 dxe5 17. Bxe5 Qb7 18. Rae1 g6 19. Qh3 {0-1 (46) Reyes Najera,C (2265)-Flores,M (2185) San Salvador 1994}) 8. e5 $1 {[%emt 0:03:19]} Nxd4 {[%emt 0:02:28]} 9. Qxd4 {[%emt 0:00:19] The position is equal.} Nd7 {[%emt 0:00:11]} 10. Be3 {[%emt 0:07:22]} a6 {[%emt 0:16:02]} 11. O-O-O {[%emt 0:03:14][%cal Of4f5]} Qc7 {[%emt 0:02:49]} 12. Qd2 {[%emt 0:08:35]} O-O {[%emt 0:09:18]} 13. Rhf1 {[%emt 0:01:13]} Bb4 {[%emt 0:07:10]} (13... b5 $15) 14. Bd4 $11 {[%emt 0:01:42]} Nc5 {[%emt 0:00:59]} 15. Qe3 $36 {[%emt 0:02:14][%mdl 2048] Against Ne4. a3 is the strong threat. White is really pushing.} b6 {[%emt 0:07:12] [#]} (15... Bd7 $16) 16. Rf3 {[%emt 0:18:08]} (16. f5 $1 $18 {[%cal Rf5f6] Black must now prevent f6.} Bxc3 17. Qxc3 (17. Bxc3 exf5 18. Rxd5 Ne4 $11)) 16... Bb7 {[%emt 0:06:27]} 17. f5 {[%emt 0:13:56]} exf5 $1 {[%emt 0:03:44]} 18. Rxf5 {[%emt 0:00:35]} Rac8 {[%emt 0:04:00]} 19. Bd3 {[%emt 0:05:23]} Bxc3 {[%emt 0:05:45]} 20. Bxc3 {[%emt 0:00:41]} Ne4 {[%emt 0:00:44] [#] Against Rg5} (20... d4 $14 21. Bxd4 (21. Qxd4 Nxd3+ 22. cxd3 Rfd8 $11) 21... Nxd3+ 22. Qxd3 b5) 21. Bd4 {[%emt 0:00:16] White is more active.} ({Better is} 21. Bb4 $1 $16 {[%cal Rb4f8]}) 21... b5 $14 {[%emt 0:02:37]} 22. Rdf1 {[%emt 0:04:25]} b4 {[%emt 0:05:18]} 23. Kb1 {[%emt 0:02:56]} Qa5 $2 {[%emt 0:02:34][%mdl 8192]} (23... Qe7 $14) 24. Bxe4 {[%emt 0:06:25]} (24. e6 $142 b3 25. axb3 (25. exf7+ Rxf7 26. axb3 Rxf5 $16) 25... fxe6 26. Rxf8+ Rxf8 27. Rxf8+ Kxf8 28. Qf4+ Ke7 29. c3 (29. Bxg7 Qe1+ 30. Ka2 Qa5+ 31. Kb1 Qe1+ 32. Ka2 Qa5+ 33. Kb1 $11)) 24... dxe4 $18 {[%emt 0:00:12]} 25. e6 $1 {[%emt 0:00:04] Chess con chili.} Bd5 $2 {[%emt 0:03:23] A mistake that costs the game.} (25... fxe6 $16 26. Qg3 (26. Rxa5 Rxf1+ 27. Qc1 Rxc1+ 28. Kxc1 e3 $11) 26... e5 27. Rxf8+ (27. Bxe5 g6 $16) (27. Qxe5 Qxe5 28. Rxf8+ Rxf8 $11) 27... Rxf8 28. Rxf8+ Kxf8) 26. Rxf7 {[%emt 0:05:08]} Bxa2+ {[%emt 0:08:37]} 27. Kc1 {[%emt 0:00:12][%cal Bb1c1,Bc1c2,Bc2d2,Bd2e1][%mdl 32]} Rxc2+ {[%emt 0:00:40]} 28. Kxc2 {[%emt 0:00:09][%csl Gf1][%cal Rf7f8] White mates.} Rc8+ {[%emt 0:00:08]} 29. Kd2 {[%emt 0:01:18]} b3+ {[%emt 0:00:55]} 30. Bc3 {[%emt 0:00:04]} Qd5+ {[%emt 0:00:49]} 31. Ke1 {[%emt 0:00:34]} Rxc3 {[%emt 0:00:31]} 32. Qxc3 {Weighted Error Value: White=0.23 (precise) /Black=0.50} 1-0

[Event "37th ECCC 2022"]
[Site "Mayrhofen"]
[Date "2022.10.04"]
[Round "2.78"]
[White "Varpanen, Jan"]
[Black "Quinn, John M"]
[Result "1-0"]
[ECO "C89"]
[WhiteElo "2106"]
[BlackElo "2122"]
[Annotator "TA"]
[PlyCount "107"]
[EventDate "2022.10.03"]
[EventType "team-tourn"]
[EventCountry "AUT"]
[SourceTitle "playchess.com"]
[Source "ChessBase"]
[SourceQuality "1"]
[TimeControl "40/5400+30:1800+30"]

{[%evp 29,107,34,51,36,75,44,50,0,99,85,171,173,315,339,340,337,308,310,308,283,310,284,318,315,285,175,175,149,160,121,125,114,107,101,126,135,133,114,115,0,128,93,94,97,102,89,102,100,120,107,186,160,163,112,113,101,237,206,239,220,215,165,246,221,305,255,339,125,258,257,415,379,370,355,564,542,986,911,1680,1515]} 1. e4 {[%emt 0:00:02]} e5 {[%emt 0:00:22]} 2. Nf3 {[%emt 0:00:08]} Nc6 {[%emt 0:00:10]} 3. Bb5 {[%emt 0:00:10]} a6 {[%emt 0:00:26]} 4. Ba4 {[%emt 0:00:05]} Nf6 {[%emt 0:00:19]} 5. O-O {[%emt 0:00:13]} Be7 {[%emt 0:00:52]} 6. Re1 {[%emt 0:01:02]} b5 {[%emt 0:00:17]} 7. Bb3 {[%emt 0:00:17]} O-O {[%emt 0:00:17]} 8. c3 {[%emt 0:00:46]} d5 {[%emt 0:00:59]} 9. exd5 {[%emt 0:00:09]} Nxd5 {[%emt 0:00:09]} 10. Nxe5 {[%emt 0:00:21]} Nxe5 {[%emt 0:00:28]} 11. Rxe5 {[%emt 0:00:10]} c6 {[%emt 0:00:10]} 12. Re1 {[%emt 0:04:48]} Bd6 {[%emt 0:03:29]} 13. d3 {[%emt 0:00:12]} Qh4 {[%emt 0:10:10]} 14. g3 {[%emt 0:02:05]} Qh3 {[%emt 0:08:43]} 15. Re4 {[%emt 0:15:22]} Nf6 {[%emt 0:04:56]} 16. Rh4 {[%emt 0:08:21] C89: Closed Ruy Lopez: Marshall Attack.} Qf5 {[%emt 0:06:20]} 17. Bc2 {[%emt 0:09:08][%cal Bb3c2,Bc2h7,Bh7e4][%mdl 32]} Re8 {[%emt 0:13:13]} 18. Nd2 {[%emt 0:13:04] [#]} (18. d4 $14 Qd5 19. Be3) 18... c5 $146 {[%emt 0:32:13]} (18... Ng4 $11 19. Nf3 (19. Ne4 Be7 $11) 19... Qg6) ({Predecessor:} 18... g5 19. Ne4 gxh4 20. Nxd6 Qe6 21. Nxe8 Nxe8 22. Bf4 h3 23. Qe1 Nf6 24. Qe5 Qxe5 25. Bxe5 {1-0 (49) Kopp,B (2399)-Siebert,V (2113) Germany 2008}) 19. Ne4 $16 {[%emt 0:04:21]} Nxe4 {[%emt 0:02:42]} (19... Be7 $16) 20. dxe4 $18 {[%emt 0:01:38][%mdl 64] Discovered Attack} Qe6 {[%emt 0:02:34] [#]} (20... Qd7 {might work better.}) 21. e5 $1 {[%emt 0:10:16]} ({Weaker is} 21. Qh5 h6 $14) 21... Bxe5 {[%emt 0:01:51]} 22. Bxh7+ {[%emt 0:06:40]} Kf8 {[%emt 0:00:11]} 23. Be4 {[%emt 0:06:10] Inhibits Bb7.} Ra7 {[%emt 0:00:32]} 24. Rh8+ {[%emt 0:09:23]} Ke7 {[%emt 0:00:02]} 25. Bg5+ {[%emt 0:01:43]} f6 {[%emt 0:05:14]} 26. Rxe8+ {[%emt 0:03:38]} Kxe8 {[%emt 0:00:01]} 27. Bg6+ {[%emt 0:01:16]} Ke7 {[%emt 0:00:22]} 28. Be3 {[%emt 0:00:38]} Rc7 {[%emt 0:01:16]} 29. Qh5 {[%emt 0:01:31] [#] Black must now prevent Qh8.} Qh3 {[%emt 0:02:07]} 30. Re1 {[%emt 0:00:57]} Qxh5 {[%emt 0:01:20]} 31. Bxh5 {[%emt 0:00:06]} Kd8 {[%emt 0:01:33]} 32. f4 {[%emt 0:00:54]} Bd6 {[%emt 0:00:03]} 33. Rd1 {[%emt 0:00:30]} Ke7 {[%emt 0:00:09]} 34. Re1 {[%emt 0:00:38] White is more active.} Kd8 $1 {[%emt 0:00:02]} 35. Bf2 {[%emt 0:00:30]} Re7 {[%emt 0:01:18]} 36. Rxe7 {[%emt 0:00:36]} Kxe7 $16 {[%emt 0:00:00][%mdl 4096] Endgame KBB-KBB} 37. Bf3 {[%emt 0:00:16]} Kf7 {[%emt 0:03:12]} 38. Kg2 {[%emt 0:00:44]} g6 {[%emt 0:00:23]} 39. Be3 {[%emt 0:00:19]} c4 {[%emt 0:00:54]} (39... Be6 $16 {keeps fighting.}) 40. a3 $18 {[%emt 0:00:19]} Ke6 {[%emt 0:00:33]} 41. Bg4+ {[%emt 0:30:58]} (41. Bb6 $18) 41... f5 $16 {[%emt 0:30:11]} 42. Bf3 {[%emt 0:00:03]} Kf7 {[%emt 0:00:52]} (42... a5 $16 43. Bb6 a4) 43. Bd5+ {[%emt 0:00:00]} Kf8 {[%emt 0:00:00]} 44. Kf3 {[%emt 0:00:00]} Ke7 {[%emt 0:00:00]} 45. h3 {[%emt 0:00:00][%cal Bh2h3,Bh3h4,Bh4h5][%mdl 32]} Kf8 {[%emt 0:00:00]} (45... Be6 $142) 46. g4 $18 {[%emt 0:00:00]} Be7 {[%emt 0:00:00]} 47. Bd4 {[%emt 0:00:00]} Bd8 {[%emt 0:00:00]} 48. gxf5 $2 {[%emt 0:00:00]} (48. g5 $18) 48... gxf5 {[%emt 0:00:00]} (48... Bxf5 $16 49. Bb7 Bxh3 50. Bxa6 Bd7 51. Bc5+ Kg7) 49. Kg3 {[%emt 0:00:00]} Bd7 $2 {[%emt 0:00:00]} (49... Ke7 {was worth a try.} 50. h4 Be6) 50. h4 {[%emt 0:00:00]} Be8 {[%emt 0:00:00]} 51. Be6 {[%emt 0:00:00]} Be7 {[%emt 0:00:00]} (51... Bg6 {was necessary.} 52. Bc8 a5) 52. Bxf5 {[%emt 0:00:00] aiming for Kg4. White is clearly winning.} a5 {[%emt 0:00:00]} 53. Kg4 {[%emt 0:00:00] h5 is the strong threat.} Bf7 {[%emt 0:00:00]} 54. h5 {[%emt 0:00:00] Weighted Error Value: White=0.26 (precise) /Black=0.44} 1-0

[Event "37th ECCC 2022"]
[Site "Mayrhofen"]
[Date "2022.10.04"]
[Round "2.78"]
[White "Buselli, Daniel"]
[Black "Spindelberger, Paul"]
[Result "*"]
[WhiteElo "1667"]
[BlackElo "1983"]
[Annotator "TA"]
[PlyCount "46"]
[EventDate "2022.10.03"]
[EventType "team-tourn"]
[EventCountry "AUT"]
[SourceTitle "playchess.com"]
[Source "ChessBase"]
[SourceQuality "1"]
[TimeControl "40/5400+30:1800+30"]

{[%evp 21,27,29,35,46,29,44,64,49]} 1. e4 {[%emt 0:00:02]} e5 {[%emt 0:00:22]} 2. Nf3 {[%emt 0:00:08]} Nc6 {[%emt 0:00:10]} 3. Bb5 {[%emt 0:00:10]} a6 {[%emt 0:00:26]} 4. Ba4 {[%emt 0:00:05]} Nf6 {[%emt 0:00:19]} 5. O-O {[%emt 0:00:13]} Be7 {[%emt 0:00:52]} 6. Re1 {[%emt 0:01:02]} b5 {[%emt 0:00:17]} 7. Bb3 {[%emt 0:00:17]} O-O {[%emt 0:00:17]} 8. c3 {[%emt 0:00:46]} d5 {[%emt 0:00:59]} 9. exd5 {[%emt 0:00:09]} Nxd5 {[%emt 0:00:09]} 10. Nxe5 {[%emt 0:00:21]} Nxe5 {[%emt 0:00:28]} 11. Rxe5 {[%emt 0:00:10]} c6 {[%emt 0:00:10]} 12. Re1 {[%emt 0:04:48] 12.d3 is becoming the main line. C89: Closed Ruy Lopez: Marshall Attack.} Bd6 {[%emt 0:03:29]} 13. d3 {[%emt 0:00:12]} Qh4 {[%emt 0:10:10]} 14. g3 {[%emt 0:02:05] [#]  Weighted Error Value: White=0.00 (flawless) /Black=0.06 (flawless)} {Predecessor:} Qh3 $146 15. Re4 Nf6 16. Rh4 Qd7 17. Nd2 c5 18. Ne4 Nxe4 19. dxe4 Be7 20. Qxd7 Bxd7 21. Rh5 c4 22. Bc2 Be6 23. Be3 Rfc8 {0-1 (48) Karthikeyan,M (2613)-Predke,A (2692) Abu Dhabi 2022} *

[Event "37th ECCC 2022"]
[Site "Mayrhofen"]
[Date "2022.10.05"]
[Round "3.1"]
[White "Mamedov, Rauf"]
[Black "Anand, Viswanathan"]
[Result "1/2-1/2"]
[ECO "C44"]
[WhiteElo "2646"]
[BlackElo "2756"]
[Annotator "TA"]
[PlyCount "60"]
[EventDate "2022.10.03"]
[EventType "team-tourn"]
[EventCountry "AUT"]
[SourceTitle "playchess.com"]
[Source "ChessBase"]
[SourceQuality "1"]
[TimeControl "40/5400+30:1800+30"]

{[%evp 16,60,0,0,0,0,0,6,4,4,4,4,21,10,12,10,48,54,54,45,54,64,43,55,57,37,27,18,12,0,0,0,20,0,0,0,0,0,6,0,12,8,8,8,12,12,14]} 1. e4 {[%emt 0:00:06]} e5 {[%emt 0:00:06]} 2. Nf3 {[%emt 0:00:04]} Nc6 {[%emt 0:00:05]} 3. d4 {[%emt 0:00:02]} exd4 {[%emt 0:00:09]} 4. Bc4 {[%emt 0:00:03]} Bc5 {[%emt 0:01:27]} 5. Ng5 {[%emt 0:00:41]} Nh6 {[%emt 0:00:49]} 6. Nxf7 {[%emt 0:00:03]} Nxf7 {[%emt 0:00:07]} 7. Bxf7+ {[%emt 0:00:04]} Kxf7 {[%emt 0:00:11]} 8. Qh5+ {[%emt 0:00:03]} g6 {[%emt 0:00:29]} 9. Qxc5 {[%emt 0:00:04]} d5 $1 {[%emt 0:00:23][%mdl 4] is recently more successful than 9...d6. C44: Ponziani Opening and Scotch Gambit.} 10. O-O {[%emt 0:00:08]} ({Don't play} 10. Qxd5+ Qxd5 11. exd5 Re8+ 12. Kd1 Nb4 $17) ({Much worse is} 10. exd5 Re8+ 11. Kd1 Re5 $17) 10... dxe4 {[%emt 0:01:05]} 11. c3 {[%emt 0:02:04]} Re8 {[%emt 0:04:03]} 12. cxd4 {[%emt 0:02:13]} Qxd4 {[%emt 0:03:39]} 13. Qg5 {[%emt 0:05:36]} Qf6 {[%emt 0:11:03]} 14. Qg3 {[%emt 0:07:50][%mdl 1024] White has compensation.} Nd4 {[%emt 0:06:39] [#] aiming for ...Ne2+.} 15. Nc3 {[%emt 0:01:56] Inhibits Ne2+.} c6 {[%emt 0:01:12]} 16. Bg5 {[%emt 0:06:25]} Qe5 {[%emt 0:06:16] [#]} 17. Rad1 $146 {[%emt 0:14:03]} ({Predecessor:} 17. Rae1 Bf5 18. Qh4 h5 19. Nxe4 Qxe4 20. Rxe4 Rxe4 21. f4 Re2 22. Bd8 Ke8 23. Ba5 {½-½ (36) Samsonkin,A (2419)-Harutyunian,T (2532) Moscow 2019}) 17... Nf5 {[%emt 0:01:40] Inhibits Qh4.} 18. Qxe5 {[%emt 0:05:38]} (18. Qh3 {looks sharper.} h6 19. Bc1 h5 20. Rfe1) 18... Rxe5 {[%emt 0:00:08]} 19. Rfe1 {[%emt 0:00:24]} h6 {[%emt 0:10:25]} 20. Bf4 {[%emt 0:03:04]} (20. Bc1 $5 {[%cal Rd1d8]}) 20... Re8 {[%emt 0:03:07]} 21. Nxe4 {[%emt 0:08:09] [#] Threatens to win with g4.} g5 {[%emt 0:04:50] The position is equal.} 22. Nd6+ {[%emt 0:17:49]} Nxd6 {[%emt 0:00:20]} 23. Bxd6 {[%emt 0:00:02]} Rxe1+ {[%emt 0:00:57]} 24. Rxe1 $11 {[%emt 0:00:04][%mdl 4096] Endgame KRB-KRB} Be6 {[%emt 0:00:08]} 25. a3 {[%emt 0:00:20]} Rd8 {[%emt 0:00:15]} 26. Bb4 {[%emt 0:00:04]} Re8 {[%emt 0:00:54]} 27. Bc3 {[%emt 0:01:30]} Bd5 {[%emt 0:00:17]} 28. Rxe8 {[%emt 0:00:03]} Kxe8 {[%emt 0:00:07]} 29. f3 {[%emt 0:00:03]} Kf7 {[%emt 0:00:20]} 30. Kf2 {[%emt 0:00:03]} h5 {[%emt 0:00:23] Weighted Error Value: White=0.04 (flawless) /Black=0.08 (flawless)} 1/2-1/2

[Event "37th ECCC 2022"]
[Site "Mayrhofen"]
[Date "2022.10.05"]
[Round "3.2"]
[White "Rapport, Richard"]
[Black "Shevchenko, Kirill"]
[Result "0-1"]
[ECO "A05"]
[WhiteElo "2754"]
[BlackElo "2645"]
[Annotator "TA"]
[PlyCount "117"]
[EventDate "2022.10.03"]
[EventType "team-tourn"]
[EventCountry "AUT"]
[SourceTitle "playchess.com"]
[Source "ChessBase"]
[SourceQuality "1"]
[TimeControl "40/5400+30:1800+30"]

{[%evp 15,117,31,16,12,10,13,12,17,22,14,19,14,6,0,8,-20,0,-14,0,0,0,0,0,0,0,0,0,0,0,0,0,-5,-6,-15,-14,-15,-15,-20,-19,-28,0,0,0,0,0,0,0,0,0,0,0,0,0,0,0,0,0,-60,-60,-60,-60,-60,-60,-60,-60,-60,-60,-61,-68,-150,-96,-997,-1128,-12835,-12836,-12849,-12849,-12850,-27996,-27997,-27997,-27994,-27996,-27994,-27997,-27995,-27992,-27993,-27993,-27995,-27995,-27996,-27996,-27997,-27995,-27996,-27996,-27997,-27997,-27998,-27997,-27998,-27998,-27998]} 1. Nf3 {[%emt 0:00:51]} Nf6 {[%emt 0:00:19]} 2. g3 {[%emt 0:01:34]} g6 {[%emt 0:01:16]} 3. Bg2 {[%emt 0:01:04]} Bg7 {[%emt 0:00:04]} 4. d4 {[%emt 0:00:32]} O-O {[%emt 0:02:22]} 5. O-O {[%emt 0:01:27]} d5 {[%emt 0:00:44]} 6. c4 {[%emt 0:01:11]} Nc6 {[%emt 0:01:20]} 7. cxd5 {[%emt 0:08:05]} Nxd5 {[%emt 0:00:05]} 8. e3 {[%emt 0:00:05]} Nb6 {[%emt 0:01:57]} 9. Bd2 {[%emt 0:03:52] D74: Fianchetto Grünfeld: Main Line (5 Nf3 0-0 6 cxd5 Nxd5 7 0-0).} e5 {[%emt 0:06:54]} 10. Nxe5 {[%emt 0:01:27]} Nxe5 {[%emt 0:00:52]} 11. dxe5 {[%emt 0:00:05] The position is equal.} Bxe5 {[%emt 0:01:17]} 12. Bc3 {[%emt 0:00:25]} Qe7 {[%emt 0:09:06] [#]} 13. Qc2 $146 {[%emt 0:06:03]} ({Predecessor:} 13. Qc1 c6 14. f4 Bd6 15. e4 Bc5+ 16. Kh1 Na4 17. f5 f6 18. Be1 Nb6 19. Nd2 {0-1 (40) Cerveny,M (2231)-Toma,K (2238) Brno 2006}) 13... c6 {[%emt 0:07:18]} 14. Nd2 {[%emt 0:05:37]} Rd8 {[%emt 0:09:09]} 15. a3 {[%emt 0:10:54]} Bf5 {[%emt 0:07:12]} 16. e4 $1 {[%emt 0:00:24]} Bg4 {[%emt 0:00:09]} 17. Bxe5 {[%emt 0:09:00]} Qxe5 {[%emt 0:00:17]} 18. f4 {[%emt 0:00:40]} Qb5 {[%emt 0:11:34]} 19. Rf2 {[%emt 0:03:10]} Qd3 $1 {[%emt 0:02:53]} 20. Rc1 {[%emt 0:11:09]} Qxc2 {[%emt 0:05:36]} 21. Rxc2 {[%emt 0:00:25]} Rd3 {[%emt 0:06:54]} 22. Bf1 {[%emt 0:07:45]} Rd4 {[%emt 0:04:58]} 23. h3 {[%emt 0:03:18]} Be6 {[%emt 0:01:19]} 24. f5 {[%emt 0:01:42]} gxf5 {[%emt 0:02:54]} 25. exf5 {[%emt 0:00:25]} Bd5 {[%emt 0:00:52]} 26. Re2 {[%emt 0:01:58]} Rd8 {[%emt 0:03:38]} 27. Kf2 {[%emt 0:02:01]} Nc4 {[%emt 0:03:10]} 28. Nxc4 {[%emt 0:06:01]} Bxc4 {[%emt 0:00:14]} 29. Re7 {[%emt 0:00:17][%csl LRb7,LRc4]} Bxf1 {[%emt 0:00:21]} 30. Kxf1 {[%emt 0:00:08]} R4d7 {[%emt 0:02:40]} 31. Rxd7 {[%emt 0:04:05]} Rxd7 $11 {[%emt 0:00:05][%mdl 4096] Endgame KR-KR} 32. Ke2 {[%emt 0:00:11] Against Rd3} Kg7 {[%emt 0:01:43]} 33. Rc4 {[%emt 0:00:26]} Rd5 {[%emt 0:00:49]} 34. Rg4+ {[%emt 0:01:01]} Kf6 {[%emt 0:00:29]} 35. Rh4 {[%emt 0:00:02]} Rb5 {[%emt 0:03:02]} 36. b4 {[%emt 0:02:26]} (36. Rxh7 $11 Rxb2+ 37. Kf3) 36... Re5+ $15 {[%emt 0:00:14]} 37. Kd2 {[%emt 0:03:14]} Rxf5 {[%emt 0:00:12]} 38. Rxh7 {[%emt 0:00:18]} Rf3 {[%emt 0:01:07][%csl LRa3,LRg3]} 39. g4 {[%emt 0:00:15]} Rxa3 {[%emt 0:00:24] [#] Threatens to win with ...Rb3.} 40. Kc2 {[%emt 0:00:22] Prevents Rb3.} a5 {[%emt 0:02:55]} 41. bxa5 {[%emt 0:31:02]} Rxa5 {[%emt 0:31:02]} 42. Rh8 {[%emt 0:01:57]} ({White should try} 42. Kd2 $15) 42... Ra3 $17 {[%emt 0:00:00]} 43. h4 $2 {[%emt 0:00:00][%mdl 8192] [#] White does not recover from this.} (43. Kd2 $17) 43... Kg7 $1 $19 {[%emt 0:00:00]} 44. Rb8 {[%emt 0:00:00]} Ra4 {[%emt 0:00:00]} 45. Rxb7 {[%emt 0:00:00]} Rxg4 {[%emt 0:00:00]} 46. Rc7 {[%emt 0:00:00]} Rxh4 {[%emt 0:00:00]} 47. Rxc6 {[%emt 0:00:00] Black mates.} Rd4 {[%emt 0:00:00]} 48. Rc3 {[%emt 0:00:00]} Rd5 {[%emt 0:00:00]} 49. Rf3 {[%emt 0:00:00]} Kg6 {[%emt 0:00:00]} 50. Rf1 {[%emt 0:00:00]} f5 {[%emt 0:00:00]} 51. Kc3 {[%emt 0:00:00]} Kg5 {[%emt 0:00:00]} 52. Kc4 {[%emt 0:00:00]} Rd8 {[%emt 0:00:14]} 53. Rg1+ {[%emt 0:00:00]} Kh4 {[%emt 0:00:08]} 54. Rf1 {[%emt 0:00:00]} Kg4 {[%emt 0:00:04]} 55. Rg1+ {[%emt 0:00:00]} Kh3 {[%emt 0:00:12]} 56. Rf1 {[%emt 0:00:00]} Rf8 {[%emt 0:00:15]} 57. Kd3 {[%emt 0:00:00]} Kg2 {[%emt 0:01:36]} 58. Rf4 {[%emt 0:00:00]} Kg3 {[%emt 0:00:13]} 59. Kd4 {Weighted Error Value: White=0.34/Black=0.01 (flawless)} 0-1